fUST/lending_fUST_20250930
["ID","MTS","AMOUNT","RATE_DAILY","PERIOD"]
[388468986,1759180503004,-151.79164016,0.00021934,2]
[388468987,1759180503417,1200.0,0.00021933,2]
[388468988,1759180507348,480.0,0.00021933,2]
[388468991,1759180510838,300.0,0.00021933,2]
[388468992,1759180511056,480.0,0.00021933,2]
[388468993,1759180512030,151.79,0.00021924,3]
[388468994,1759180516002,480.0,0.00021933,2]
[388468995,1759180516249,480.0,0.00021933,2]
[388468997,1759180518222,-254.23286875,0.00021934,2]
[388468998,1759180527139,480.0,0.00021933,2]
[388468999,1759180528180,480.0,0.00021933,2]
[388469000,1759180529063,480.0,0.00021933,2]
[388469002,1759180530374,480.0,0.00021933,2]
[388469003,1759180531035,615.48956978,0.00021933,2]
[388469004,1759180531645,-159.10982068,0.00021934,2]
[388469005,1759180533211,480.0,0.00021933,2]
[388469006,1759180535400,47.46196182,0.00021933,2]
[388469007,1759180535460,463.91191029,0.00021933,2]
[388469008,1759180538926,480.0,0.00021933,2]
[388469009,1759180540468,480.0,0.00021933,2]
[388469010,1759180541070,480.0,0.00021933,2]
[388469011,1759180542918,159.11,0.00021924,3]
[388469012,1759180542968,480.0,0.00021933,2]
[388469013,1759180544912,480.0,0.00021933,2]
[388469014,1759180546283,480.0,0.00021933,2]
[388469015,1759180548813,-303.3802545,0.00021934,2]
[388469016,1759180549873,472.11652225,0.00021933,2]
[388469017,1759180549921,480.0,0.00021933,2]
[388469018,1759180553367,609.74,0.00021924,3]
[388469019,1759180558210,480.0,0.00021933,2]
[388469020,1759180559509,480.0,0.00021933,2]
[388469021,1759180559977,480.0,0.00021933,2]
[388469022,1759180562424,300.0,0.00021933,2]
[388469023,1759180563853,303.38,0.00021924,3]
[388469024,1759180568643,480.0,0.00021933,2]
[388469025,1759180570930,480.0,0.00021933,2]
[388469026,1759180571047,480.0,0.00021933,2]
[388469027,1759180571851,511.511318,0.00021933,2]
[388469028,1759180576777,480.0,0.00021933,2]
[388469029,1759180581852,460.24024946,0.00021933,2]
[388469030,1759180581897,19.75975054,0.00021933,2]
[388469031,1759180584510,480.0,0.00021933,2]
[388469032,1759180584602,480.0,0.00021933,2]
[388469033,1759180590891,480.0,0.00021933,2]
[388469034,1759180593194,480.0,0.00021933,2]
[388469035,1759180594132,480.0,0.00021933,2]
[388469036,1759180596164,480.0,0.00021933,2]
[388469037,1759180596757,480.0,0.00021933,2]
[388469038,1759180599033,480.0,0.00021933,2]
[388469039,1759180599921,480.0,0.00021933,2]
[388469040,1759180602605,480.0,0.00021933,2]
[388469041,1759180602661,480.0,0.00021933,2]
[388469042,1759180602712,480.0,0.00021933,2]
[388469043,1759180606301,480.0,0.00021933,2]
[388469044,1759180607477,480.0,0.00021933,2]
[388469045,1759180608743,480.0,0.00021933,2]
[388469046,1759180610497,480.0,0.00021933,2]
[388469047,1759180611500,480.0,0.00021933,2]
[388469048,1759180614597,480.0,0.00021933,2]
[388469049,1759180615353,480.0,0.00021933,2]
[388469050,1759180618366,856.33,0.00021933,2]
[388469051,1759180622292,3.92024946,0.00021933,2]
[388469052,1759180622337,296.07975054,0.00021933,2]
[388469053,1759180631645,480.0,0.00021933,2]
[388469054,1759180632734,480.0,0.00021933,2]
[388469055,1759180635029,1777.71,0.00021933,2]
[388469056,1759180635814,480.0,0.00021933,2]
[388469057,1759180638210,480.0,0.00021933,2]
[388469058,1759180639170,480.0,0.00021933,2]
[388469059,1759180640607,488.93568003,0.000219,2]
[388469060,1759180641217,480.0,0.00021933,2]
[388469061,1759180644970,480.0,0.00021933,2]
[388469062,1759180646425,480.0,0.00021933,2]
[388469063,1759180647207,480.0,0.00021933,2]
[388469064,1759180650530,480.0,0.00021933,2]
[388469065,1759180650863,378.55306596,0.000219,2]
[388469066,1759180651076,1286.77,0.00021933,2]
[388469067,1759180651361,971.96150347,0.00021933,2]
[388469068,1759180651404,314.80849653,0.00021933,2]
[388469069,1759180651788,1286.77,0.00021933,2]
[388469070,1759180651868,1286.77,0.00021933,2]
[388469071,1759180652131,1286.77,0.00021933,2]
[388469072,1759180652388,1286.77,0.00021933,2]
[388469073,1759180652652,1286.77,0.00021933,2]
[388469074,1759180652913,1286.77,0.00021933,2]
[388469075,1759180653225,1286.77,0.00021933,2]
[388469076,1759180653497,677.81150347,0.00021933,2]
[388469077,1759180653537,608.95849653,0.00021933,2]
[388469078,1759180653802,1286.77,0.00021933,2]
[388469079,1759180654111,1286.77,0.00021933,2]
[388469080,1759180654782,480.0,0.00021933,2]
[388469081,1759180655163,1286.77,0.00021933,2]
[388469082,1759180655391,1286.77,0.00021933,2]
[388469083,1759180655656,1286.77,0.00021933,2]
[388469084,1759180656061,381.79477701,0.00021933,2]
[388469085,1759180659201,652.37,0.00021933,2]
[388469086,1759180664832,432.21277254,0.00021933,2]
[388469087,1759180665257,480.0,0.00021933,2]
[388469088,1759180666278,480.0,0.00021933,2]
[388469089,1759180666331,50.82395392,0.00021924,3]
[388469090,1759180666375,174.06604608,0.00021924,3]
[388469091,1759180667431,1780.57,0.00021933,2]
[388469092,1759180669926,-8069.24215975,0.00021934,2]
[388469093,1759180669975,-10000.01,0.00021934,2]
[388469094,1759180670036,480.0,0.00021933,2]
[388469095,1759180670093,-9520.01,0.00021934,2]
[388469096,1759180678033,-1040.43,0.00021924,3]
[388469097,1759180678083,-480.0,0.00021933,2]
[388469098,1759180678137,-480.0,0.00021933,2]
[388469099,1759180678187,-480.0,0.00021933,2]
[388469100,1759180678237,-480.0,0.00021933,2]
[388469101,1759180678480,-4079.15,0.00021934,2]
[388469102,1759180678582,-10000.01,0.00021934,2]
[388469103,1759180678640,-10000.01,0.00021934,2]
[388469104,1759180678697,-10000.01,0.00021934,2]
[388469105,1759180678746,-10000.01,0.00021934,2]
[388469106,1759180678902,-10000.01,0.00021934,2]
[388469107,1759180679083,-480.0,0.00021933,2]
[388469108,1759180679165,-9040.01,0.00021934,2]
[388469109,1759180688069,-3376.2,0.00021924,3]
[388469110,1759180688135,-480.0,0.00021933,2]
[388469111,1759180688203,-300.0,0.00021933,2]
[388469112,1759180688269,-480.0,0.00021933,2]
[388469113,1759180688338,-247.61,0.00021933,2]
[388469114,1759180688517,-232.39,0.00021933,2]
[388469115,1759180688566,-480.0,0.00021933,2]
[388469116,1759180689000,-232.39,0.00021933,2]
[388469117,1759180689045,-247.61,0.00021933,2]
[388469118,1759180689056,-8327.62,0.00021934,2]
[388469119,1759180708281,-248.90214496,0.000219,2]
[388469131,1759180920847,427.81872007,0.00021832,2]
[388469132,1759180991227,302.8424528,0.00021834,2]
[388469134,1759181008950,-1200.0,0.00021922,2]
[388469135,1759181009007,-300.0,0.00021922,2]
[388469136,1759181009064,-300.0,0.00021923,2]
[388469137,1759181009117,-300.0,0.00021923,2]
[388469138,1759181009171,-300.0,0.00021923,2]
[388469139,1759181009217,-300.0,0.00021923,2]
[388469140,1759181009263,-1200.0,0.00021923,2]
[388469141,1759181009310,-500.0,0.00021923,2]
[388469142,1759181009359,-500.0,0.00021923,2]
[388469143,1759181009630,-500.0,0.00021923,2]
[388469144,1759181009673,-500.0,0.00021923,2]
[388469145,1759181009716,-500.0,0.00021923,2]
[388469146,1759181009770,-500.0,0.00021923,2]
[388469147,1759181009820,-500.0,0.00021923,2]
[388469148,1759181009864,-500.0,0.00021923,2]
[388469149,1759181009912,-500.0,0.00021923,2]
[388469150,1759181009966,-453.133485,0.00021923,2]
[388469151,1759181010019,-500.0,0.00021923,2]
[388469152,1759181010066,-540.6166521,0.00021923,2]
[388469153,1759181010376,-12.5097258,0.00021923,2]
[388469154,1759181010428,-500.0,0.00021923,2]
[388469155,1759181010474,-255.77495289,0.00021923,2]
[388469156,1759181010521,-500.0,0.00021923,2]
[388469157,1759181010567,-500.0,0.00021923,2]
[388469158,1759181010802,-197.52137962,0.00021923,2]
[388469159,1759181010856,-380.57377339,0.00021923,2]
[388469160,1759181010904,-500.0,0.00021923,2]
[388469161,1759181010952,-500.0,0.00021923,2]
[388469162,1759181011003,-500.0,0.00021923,2]
[388469163,1759181011055,-500.0,0.00021923,2]
[388469164,1759181011106,-500.0,0.00021923,2]
[388469165,1759181011224,-500.0,0.00021923,2]
[388469166,1759181011274,-500.0,0.00021923,2]
[388469167,1759181011325,-500.0,0.00021923,2]
[388469168,1759181011374,-500.0,0.00021923,2]
[388469169,1759181011421,-500.0,0.00021923,2]
[388469170,1759181011468,-500.0,0.00021923,2]
[388469171,1759181011517,-500.0,0.00021923,2]
[388469172,1759181011566,-500.0,0.00021923,2]
[388469173,1759181011612,-500.0,0.00021923,2]
[388469174,1759181011660,-500.0,0.00021923,2]
[388469175,1759181011866,-500.0,0.00021923,2]
[388469176,1759181011918,-500.0,0.00021923,2]
[388469177,1759181011967,-500.0,0.00021923,2]
[388469178,1759181012016,-500.0,0.00021923,2]
[388469179,1759181012066,-500.0,0.00021923,2]
[388469180,1759181012116,-500.0,0.00021923,2]
[388469181,1759181012167,-500.0,0.00021923,2]
[388469182,1759181012219,-500.0,0.00021923,2]
[388469183,1759181012270,-500.0,0.00021923,2]
[388469184,1759181012320,-217.3201432,0.00021923,2]
[388469185,1759181012369,-65.3697136,0.00021923,2]
[388469186,1759181012571,-434.6302864,0.00021923,2]
[388469187,1759181012618,-500.0,0.00021923,2]
[388469188,1759181012665,-500.0,0.00021923,2]
[388469189,1759181012713,-437.36383012,0.00021923,2]
[388469190,1759181012760,-500.0,0.00021923,2]
[388469191,1759181012811,-500.0,0.00021923,2]
[388469192,1759181012860,-500.0,0.00021923,2]
[388469193,1759181012909,-500.0,0.00021923,2]
[388469194,1759181012957,-500.0,0.00021923,2]
[388469195,1759181013004,-299.72459773,0.00021923,2]
[388469196,1759181013052,-156.5725715,0.00021923,2]
[388469197,1759181013173,-343.4274285,0.00021923,2]
[388469198,1759181013222,-500.0,0.00021923,2]
[388469199,1759181013271,-500.0,0.00021923,2]
[388469200,1759181013321,-500.0,0.00021923,2]
[388469201,1759181013373,-500.0,0.00021923,2]
[388469202,1759181013421,-500.0,0.00021923,2]
[388469203,1759181013469,-500.0,0.00021923,2]
[388469204,1759181013516,-500.0,0.00021923,2]
[388469205,1759181013569,-500.0,0.00021923,2]
[388469206,1759181013619,-500.0,0.00021923,2]
[388469207,1759181013788,-500.0,0.00021923,2]
[388469208,1759181013839,-243.73638301,0.00021923,2]
[388469209,1759181013894,-1125.4,0.00021924,3]
[388469210,1759181013945,-562.7,0.00021924,3]
[388469211,1759181013994,-281.35,0.00021924,3]
[388469212,1759181014045,-844.08,0.00021924,3]
[388469213,1759181014848,-303.3802545,0.00021924,2]
[388469214,1759181017302,-106.09689503,0.00021922,10]
[388469215,1759181017345,-202.57310497,0.00021922,10]
[388469216,1759181017354,-641.50689503,0.00021924,2]
[388469217,1759181017400,-480.0,0.00021922,2]
[388469218,1759181017409,-2405.47723398,0.00021924,2]
[388469219,1759181017463,-10000.01,0.00021924,2]
[388469220,1759181017504,-10000.01,0.00021924,2]
[388469221,1759181018763,-10000.01,0.00021924,2]
[388469222,1759181018944,-10000.01,0.00021924,2]
[388469223,1759181019111,-3350.41438351,0.00021924,2]
[388469224,1759181019158,-3299.18123298,0.00021924,2]
[388469225,1759181019296,-252.12349828,0.00021931,2]
[388469226,1759181019342,-201.74579608,0.00021931,2]
[388469227,1759181019389,-619.07692347,0.00021931,2]
[388469228,1759181019433,-480.0,0.00021931,2]
[388469229,1759181019478,-480.0,0.00021931,2]
[388469230,1759181019520,-480.0,0.00021931,2]
[388469231,1759181019565,-480.0,0.00021931,2]
[388469232,1759181019608,-480.0,0.00021931,2]
[388469233,1759181019651,-431.56831492,0.00021931,2]
[388469234,1759181019694,-518.21598988,0.00021931,2]
[388469235,1759181019739,-480.0,0.00021931,2]
[388469236,1759181020392,-194.54895474,0.00021931,2]
[388469237,1759181038807,-5000.0,0.00021703,13]
[388469238,1759181039026,-0.01,0.00021922,2]
[388469239,1759181039088,-479.99,0.00021922,2]
[388469240,1759181039136,-285.45104526,0.00021931,2]
[388469241,1759181039184,-480.0,0.00021932,2]
[388469242,1759181039237,-480.0,0.00021932,2]
[388469243,1759181039288,-480.0,0.00021932,2]
[388469244,1759181039333,-480.0,0.00021932,2]
[388469245,1759181039388,-480.0,0.00021932,2]
[388469246,1759181039440,-480.0,0.00021932,2]
[388469247,1759181039491,-480.0,0.00021932,2]
[388469248,1759181039541,-820.65,0.00021932,2]
[388469249,1759181039677,-480.0,0.00021932,2]
[388469250,1759181039729,-1703.64,0.00021932,2]
[388469251,1759181039784,-480.0,0.00021932,2]
[388469252,1759181039835,-562.52,0.00021932,2]
[388469253,1759181039891,-480.0,0.00021932,2]
[388469254,1759181039942,-480.0,0.00021932,2]
[388469255,1759181039995,-480.0,0.00021932,2]
[388469256,1759181040048,-187.69,0.00021932,2]
[388469257,1759181040284,-292.31,0.00021932,2]
[388469258,1759181040342,-625.18,0.00021932,2]
[388469259,1759181040399,-480.0,0.00021932,2]
[388469260,1759181040458,-1706.38,0.00021932,2]
[388469261,1759181040516,-480.0,0.00021932,2]
[388469262,1759181040578,-480.0,0.00021932,2]
[388469263,1759181040628,-155.95996062,0.00021932,2]
[388469264,1759181040676,-480.0,0.00021932,2]
[388469265,1759181040729,-120.35007876,0.00021932,2]
[388469266,1759181040991,-359.64992124,0.00021932,2]
[388469267,1759181041043,-480.0,0.00021932,2]
[388469268,1759181041092,-480.0,0.00021932,2]
[388469269,1759181041141,-521.63,0.00021932,2]
[388469270,1759181041194,-500.0,0.00021932,2]
[388469271,1759181041246,-480.0,0.00021932,2]
[388469272,1759181041300,-480.0,0.00021932,2]
[388469273,1759181041354,-480.0,0.00021932,2]
[388469274,1759181041405,-1198.35015752,0.00021932,2]
[388469275,1759181041683,-40.74984248,0.00021932,2]
[388469276,1759181041737,-500.0,0.00021932,2]
[388469277,1759181041803,-969.93,0.00021932,2]
[388469278,1759181041887,-480.0,0.00021932,2]
[388469279,1759181041952,-480.0,0.00021932,2]
[388469280,1759181042003,-480.0,0.00021932,2]
[388469281,1759181042055,-615.68,0.00021932,2]
[388469282,1759181042105,-480.0,0.00021932,2]
[388469283,1759181042152,-480.0,0.00021932,2]
[388469284,1759181042200,-467.29031504,0.00021932,2]
[388469285,1759181044114,-12.70968496,0.00021932,2]
[388469286,1759181044123,-393.24031504,0.00021932,2]
[388469287,1759181044161,-86.75968496,0.00021932,2]
[388469288,1759181044170,-393.24031504,0.00021932,2]
[388469291,1759181079148,-5000.0,0.00021486,13]
[388469292,1759181085571,-273.94,0.00021703,13]
[388469293,1759181086577,0.01,0.00021486,2]
[388469294,1759181086617,4999.99,0.00021486,2]
[388469295,1759181100999,-154.8434672,0.00021703,13]
[388469296,1759181102159,824.00966604,0.00021486,2]
[388469297,1759181116102,-151.79164016,0.00021703,13]
[388469298,1759181132065,-159.10982068,0.00021703,13]
[388469301,1759181146441,-126.7124347,0.00021703,13]
[388469304,1759181210483,172.951157,0.00020922,2]
[388469311,1759181303804,938.4110873,0.00021089,2]
[388469320,1759181379776,-244.75461143,0.00021793,2]
[388469321,1759181379858,-500.0,0.000218,2]
[388469322,1759181379908,-1331.61371037,0.0002189,2]
[388469323,1759181379962,-1200.0,0.0002192,2]
[388469324,1759181380011,-300.0,0.0002192,2]
[388469325,1759181380060,-500.33928922,0.0002192,2]
[388469326,1759181380106,-480.0,0.0002192,2]
[388469327,1759181380413,-1200.0,0.00021921,2]
[388469328,1759181380477,-406.81544833,0.00021921,2]
[388469329,1759181380540,-398.70849319,0.00021921,2]
[388469330,1759181380590,-500.0,0.00021921,2]
[388469331,1759181380635,-632.51962961,0.00021921,2]
[388469332,1759181380686,-500.0,0.00021921,2]
[388469333,1759181380736,-500.0,0.00021921,2]
[388469334,1759181380783,-321.8478592,0.00021921,2]
[388469335,1759181380832,-256.18251305,0.00021921,2]
[388469336,1759181380886,-168.83251807,0.00021921,2]
[388469337,1759181381120,-230.1970771,0.00021921,2]
[388469338,1759181381169,-500.0,0.00021921,2]
[388469339,1759181381222,-500.0,0.00021921,2]
[388469340,1759181381276,-500.0,0.00021921,2]
[388469341,1759181381324,-480.0,0.00021921,2]
[388469342,1759181381368,-482.05150474,0.00021921,2]
[388469343,1759181381416,-480.0,0.00021921,2]
[388469344,1759181381470,-480.0,0.00021921,2]
[388469345,1759181381515,-210.37918064,0.00021921,2]
[388469346,1759181381560,-480.0,0.00021921,2]
[388469347,1759181381605,-480.0,0.00021921,2]
[388469348,1759181381675,-480.0,0.00021921,2]
[388469349,1759181381722,-480.0,0.00021921,2]
[388469350,1759181381769,-831.32,0.00021921,2]
[388469351,1759181381816,-480.0,0.00021921,2]
[388469352,1759181381864,-1633.91,0.00021921,2]
[388469353,1759181381911,-554.27,0.00021921,2]
[388469354,1759181382197,-1081.01,0.00021921,2]
[388469355,1759181382638,-480.0,0.0002192,2]
[388469356,1759181383865,-3089.05393051,0.00021921,2]
[388469357,1759181383923,-10000.01,0.00021921,2]
[388469358,1759181383965,-480.0,0.00021921,2]
[388469359,1759181384009,-9040.01,0.00021921,2]
[388469360,1759181384075,-8246.45073203,0.00021921,2]
[388469361,1759181384084,-480.0,0.00021922,2]
[388469362,1759181384093,-480.0,0.00021922,2]
[388469363,1759181384102,-480.0,0.00021922,2]
[388469364,1759181384112,-313.55926797,0.00021922,2]
[388469365,1759181384165,-873.92073203,0.00021922,2]
[388469366,1759181384174,-599.13,0.00021922,2]
[388469367,1759181384184,-480.0,0.00021922,2]
[388469368,1759181384193,-480.0,0.00021922,2]
[388469369,1759181384202,-480.0,0.00021922,2]
[388469370,1759181384211,-480.0,0.00021922,2]
[388469371,1759181384220,-529.7,0.00021922,2]
[388469372,1759181384232,-499.89,0.00021922,2]
[388469373,1759181384241,-480.0,0.00021922,2]
[388469374,1759181384250,-929.51,0.00021922,2]
[388469375,1759181384260,-480.0,0.00021922,2]
[388469376,1759181384269,-876.08,0.00021922,2]
[388469377,1759181384278,-480.0,0.00021922,2]
[388469378,1759181384288,-566.75968496,0.00021922,2]
[388469379,1759181384298,-1004.12,0.00021922,2]
[388469380,1759181384307,-480.0,0.00021922,2]
[388469381,1759181384316,-280.89958301,0.00021922,2]
[388469382,1759181384367,-199.10041699,0.00021922,2]
[388469383,1759181384378,-480.0,0.00021922,2]
[388469384,1759181384393,-480.0,0.00021922,2]
[388469385,1759181384402,-714.62,0.00021922,2]
[388469386,1759181384411,-480.0,0.00021922,2]
[388469387,1759181384421,-480.0,0.00021922,2]
[388469388,1759181384430,-641.83,0.00021922,2]
[388469389,1759181384440,-471.55374942,0.00021922,2]
[388469390,1759181384450,-480.0,0.00021922,2]
[388469391,1759181384459,-500.0,0.00021922,2]
[388469392,1759181384468,-1006.19,0.00021922,2]
[388469393,1759181384477,-480.0,0.00021922,2]
[388469394,1759181384487,-480.0,0.00021922,2]
[388469395,1759181384497,-480.0,0.00021922,2]
[388469396,1759181384507,-480.0,0.00021922,2]
[388469397,1759181384516,-480.0,0.00021922,2]
[388469398,1759181384525,-480.0,0.00021922,2]
[388469399,1759181384534,-480.0,0.00021922,2]
[388469400,1759181384544,-480.0,0.00021922,2]
[388469401,1759181384553,-226.71583359,0.00021922,2]
[388469402,1759181389597,-480.0,0.00021921,2]
[388469403,1759181389647,-574.17,0.00021921,2]
[388469404,1759181389694,-826.35416641,0.00021922,2]
[388469405,1759181389741,-2145.71166718,0.00021922,2]
[388469406,1759181389898,-1947.53833282,0.00021922,2]
[388469407,1759181389953,-858.08,0.00021922,2]
[388469408,1759181390004,-500.0,0.00021923,2]
[388469409,1759181390059,-2772.62,0.00021923,3]
[388469410,1759181390112,-352.3,0.00021923,3]
[388469411,1759181390294,-1034.01,0.00021923,3]
[388469441,1759181432003,-480.0,0.0002192,2]
[388469443,1759181432013,-480.0,0.0002192,2]
[388469445,1759181432024,-151.79164016,0.00021921,2]
[388469446,1759181432034,-151.0,0.00021921,2]
[388469449,1759181432045,-492.6002318,0.00021921,2]
[388469451,1759181432055,-1196.87,0.00021921,2]
[388469452,1759181432064,-480.0,0.00021921,2]
[388469455,1759181432075,-507.59,0.00021921,2]
[388469458,1759181432086,-1049.63,0.00021922,2]
[388469460,1759181432095,-494.13,0.00021922,2]
[388469464,1759181432107,-1200.0,0.00021922,2]
[388469467,1759181432116,-1531.77,0.00021922,2]
[388469471,1759181432126,-614.45,0.00021922,2]
[388469472,1759181432136,-536.88,0.00021922,2]
[388469475,1759181432145,-693.16,0.00021923,3]
[388469478,1759181432155,-346.58,0.00021923,3]
[388469481,1759181432165,-173.29,0.00021923,3]
[388469483,1759181432176,-519.87,0.00021923,3]
[388469486,1759181432186,-300.0,0.0002193,2]
[388469489,1759181432195,-433.35384643,0.0002193,2]
[388469492,1759181432205,-176.48644879,0.0002193,2]
[388469495,1759181432215,-480.0,0.00021931,2]
[388469497,1759181432224,-480.0,0.00021931,2]
[388469499,1759181432235,-480.0,0.00021931,2]
[388469501,1759181432244,-480.0,0.00021931,2]
[388469503,1759181432254,-481.40269373,0.00021931,2]
[388469506,1759181432264,-480.0,0.00021931,2]
[388469507,1759181432277,-346.06,0.00021932,2]
[388469510,1759181432287,-480.0,0.00021932,2]
[388469512,1759181432297,-480.0,0.00021932,2]
[388469514,1759181432306,-510.68,0.00021932,2]
[388469516,1759181432317,-480.0,0.00021932,2]
[388469517,1759181432327,-480.0,0.00021932,2]
[388469520,1759181432345,-876.91,0.00021932,2]
[388469521,1759181432355,-480.0,0.00021932,2]
[388469523,1759181432365,-480.0,0.00021932,2]
[388469525,1759181432374,-480.0,0.00021932,2]
[388469526,1759181432384,-480.0,0.00021932,2]
[388469529,1759181432394,-480.0,0.00021932,2]
[388469530,1759181432404,-238.30428708,0.00021932,2]
[388469533,1759181432417,-241.69571292,0.00021932,2]
[388469535,1759181432427,-480.0,0.00021932,2]
[388469537,1759181432437,-480.0,0.00021932,2]
[388469539,1759181432447,-480.0,0.00021932,2]
[388469541,1759181432456,-480.0,0.00021932,2]
[388469542,1759181432467,-480.0,0.00021932,2]
[388469544,1759181432476,-480.0,0.00021932,2]
[388469546,1759181432486,-480.0,0.00021932,2]
[388469548,1759181432495,-480.0,0.00021932,2]
[388469550,1759181432505,-480.0,0.00021932,2]
[388469552,1759181432515,-480.0,0.00021932,2]
[388469554,1759181432526,-481.7384302,0.00021932,2]
[388469556,1759181432535,-484.91925,0.00021932,2]
[388469558,1759181432545,-480.0,0.00021932,2]
[388469560,1759181432555,-480.0,0.00021932,2]
[388469562,1759181432565,-480.0,0.00021932,2]
[388469564,1759181432575,-480.0,0.00021932,2]
[388469566,1759181432585,-480.0,0.00021932,2]
[388469568,1759181432594,-480.0,0.00021932,2]
[388469570,1759181432603,-480.0,0.00021932,2]
[388469572,1759181432613,-2000.0,0.00021932,7]
[388469574,1759181432623,-2000.0,0.00021932,7]
[388469576,1759181432633,-2000.0,0.00021932,7]
[388469578,1759181432642,-746.42025771,0.00021932,7]
[388469580,1759181432652,-480.0,0.00021932,2]
[388469582,1759181432662,-480.0,0.00021932,2]
[388469584,1759181432672,-480.0,0.00021932,2]
[388469586,1759181432681,-413.314077,0.00021932,2]
[388469588,1759181432691,-476.0053604,0.00021932,2]
[388469590,1759181432700,-480.0,0.00021932,2]
[388469592,1759181432710,-480.0,0.00021932,2]
[388469593,1759181432719,-480.0,0.00021932,2]
[388469595,1759181432729,-480.0,0.00021932,2]
[388469597,1759181432738,-480.0,0.00021932,2]
[388469599,1759181432748,-480.0,0.00021932,2]
[388469601,1759181432757,-480.0,0.00021932,2]
[388469603,1759181432767,-507.55,0.00021932,2]
[388469604,1759181432777,-480.0,0.00021932,2]
[388469606,1759181432787,-480.0,0.00021932,2]
[388469608,1759181432797,-480.0,0.00021932,2]
[388469610,1759181432806,-480.0,0.00021932,2]
[388469612,1759181432817,-590.19,0.00021932,2]
[388469614,1759181432826,-480.0,0.00021932,2]
[388469616,1759181432835,-480.0,0.00021932,2]
[388469618,1759181432845,-480.0,0.00021932,2]
[388469620,1759181432855,-480.0,0.00021932,2]
[388469622,1759181432865,-480.0,0.00021932,2]
[388469623,1759181432875,-480.0,0.00021932,2]
[388469625,1759181432884,-1024.9,0.00021932,2]
[388469627,1759181432895,-480.0,0.00021932,2]
[388469629,1759181432905,-480.0,0.00021932,2]
[388469631,1759181432915,-480.0,0.00021932,2]
[388469633,1759181432926,-480.0,0.00021932,2]
[388469635,1759181432936,-480.0,0.00021932,2]
[388469637,1759181432946,-891.77,0.00021932,2]
[388469639,1759181432956,-480.0,0.00021932,2]
[388469641,1759181432966,-480.0,0.00021932,2]
[388469642,1759181432976,-480.0,0.00021932,2]
[388469644,1759181432987,-480.0,0.00021932,2]
[388469646,1759181433005,-480.0,0.00021932,2]
[388469648,1759181433016,-480.0,0.00021932,2]
[388469650,1759181433026,-773.76,0.00021932,2]
[388469652,1759181433035,-2793.33,0.00021932,2]
[388469654,1759181433046,-536.55,0.00021932,2]
[388469656,1759181433056,-1222.2,0.00021932,2]
[388469658,1759181433067,-480.0,0.00021932,2]
[388469659,1759181433077,-480.0,0.00021932,2]
[388469660,1759181433087,-481.03289711,0.00021932,2]
[388469661,1759181433097,-480.0,0.00021932,2]
[388469662,1759181433108,-480.0,0.00021932,2]